fUSD/lending_fUSD_20251227
["ID","MTS","AMOUNT","RATE_DAILY","PERIOD"]
[399897504,1766830252077,-318.52577951,0.00033972,9]
[399897505,1766830252087,-151.0,0.00033972,31]
[399897506,1766830252097,-500.0,0.00033972,9]
[399897507,1766830252107,-1460.78,0.00033972,9]
[399897508,1766830252117,-325.39644713,0.00033972,9]
[399897509,1766830252127,-337.38254316,0.00033972,9]
[399897510,1766830252138,-333.15698,0.00033972,28]
[399897511,1766830252147,-333.15698,0.00033972,28]
[399897512,1766830252158,-500.0,0.00033972,9]
[399897513,1766830252168,-333.15698,0.00033972,28]
[399897514,1766830252178,-333.156986,0.00033972,28]
[399897515,1766830252607,-151.0,0.00033972,31]
[399897516,1766830252621,-172.4,0.00034,10]
[399897517,1766830252630,-1000.0,0.00034,7]
[399897518,1766830252640,-3016.35,0.00034,2]
[399897519,1766830252649,-6053.46,0.00034,14]
[399897520,1766830252659,-7564.92410594,0.00034236,3]
[399897521,1766830252668,-500.0,0.00034246,2]
[399897522,1766830252678,-500.0,0.00034246,9]
[399897523,1766830252687,-500.0,0.00034246,9]
[399897524,1766830252696,-500.0,0.00034246,9]
[399897525,1766830252705,-275.99910338,0.00034246,9]
[399897526,1766830252714,-641.51,0.00034246,9]
[399897527,1766830252724,-210.53381496,0.00034246,9]
[399897528,1766830252734,-522.31901768,0.00034246,9]
[399897529,1766830252743,-488.05010357,0.00034246,9]
[399897530,1766830252753,-274.79065186,0.00034246,9]
[399897531,1766830252766,-500.0,0.00034246,9]
[399897532,1766830252775,-500.0,0.00034246,9]
[399897533,1766830252784,-500.0,0.00034246,9]
[399897534,1766830252793,-759.91,0.00034246,9]
[399897535,1766830252802,-500.0,0.00034246,9]
[399897536,1766830252812,-517.98961844,0.00034246,9]
[399897537,1766830252826,-500.0,0.00034246,9]
[399897538,1766830252835,-500.0,0.00034246,9]
[399897539,1766830252845,-500.0,0.00034246,9]
[399897540,1766830252854,-1457.7,0.00034246,9]
[399897541,1766830252864,-622.76,0.00034246,9]
[399897542,1766830252873,-500.0,0.00034246,9]
[399897543,1766830252883,-576.45,0.00034246,9]
[399897544,1766830252892,-500.0,0.00034246,9]
[399897545,1766830252901,-500.0,0.00034246,9]
[399897546,1766830252910,-500.0,0.00034246,9]
[399897547,1766830252920,-500.0,0.00034246,9]
[399897548,1766830252929,-500.0,0.00034246,9]
[399897549,1766830252938,-1460.78,0.00034246,9]
[399897550,1766830252947,-506.97176544,0.00034246,9]
[399897551,1766830252956,-7564.92410594,0.0003451,3]
[399897552,1766830252966,-500.0,0.0003452,9]
[399897553,1766830252975,-500.0,0.0003452,9]
[399897554,1766830252984,-500.0,0.0003452,9]
[399897555,1766830252994,-641.51,0.0003452,9]
[399897556,1766830253003,-507.25689169,0.0003452,9]
[399897557,1766830253012,-500.0,0.0003452,9]
[399897558,1766830253022,-500.0,0.0003452,9]
[399897559,1766830253032,-759.91,0.0003452,9]
[399897560,1766830253041,-550.45440258,0.0003452,9]
[399897561,1766830253050,-500.0,0.0003452,9]
[399897562,1766830253060,-500.0,0.0003452,9]
[399897563,1766830253070,-500.0,0.0003452,9]
[399897564,1766830253079,-1457.7,0.0003452,9]
[399897565,1766830253088,-622.76,0.0003452,9]
[399897566,1766830253098,-500.0,0.0003452,9]
[399897567,1766830253108,-576.45,0.0003452,9]
[399897568,1766830253118,-500.0,0.0003452,9]
[399897569,1766830253128,-500.0,0.0003452,9]
[399897570,1766830253137,-500.0,0.0003452,9]
[399897571,1766830253147,-500.0,0.0003452,9]
[399897572,1766830253156,-500.0,0.0003452,9]
[399897573,1766830253166,-1460.78,0.0003452,9]
[399897574,1766830253176,-333.78784265,0.00034566,7]
[399897575,1766830253186,-600.0,0.00034644,14]
[399897576,1766830253195,-500.0,0.00034794,9]
[399897577,1766830253206,-500.0,0.00034794,9]
[399897578,1766830253216,-515.9139422,0.00034794,9]
[399897579,1766830253229,-641.51,0.00034794,9]
[399897580,1766830253239,-389.38912862,0.00034794,9]
[399897581,1766830253249,-500.0,0.00034794,9]
[399897582,1766830253259,-759.91,0.00034794,9]
[399897583,1766830253269,-500.0,0.00034794,9]
[399897584,1766830253278,-500.0,0.00034794,9]
[399897585,1766830253289,-500.0,0.00034794,9]
[399897586,1766830253299,-1457.7,0.00034794,9]
[399897587,1766830253309,-622.76,0.00034794,9]
[399897588,1766830253319,-500.0,0.00034794,9]
[399897589,1766830253330,-576.45,0.00034794,9]
[399897590,1766830253340,-500.0,0.00034794,9]
[399897591,1766830253350,-500.0,0.00034794,9]
[399897592,1766830253359,-500.0,0.00034794,9]
[399897593,1766830253369,-500.0,0.00034794,9]
[399897594,1766830253379,-500.0,0.00034794,9]
[399897595,1766830253389,-1460.78,0.00034794,9]
[399897596,1766830253400,-127747.08242202,0.0003488,120]
[399897597,1766830253410,-77143.07898941,0.0003488,120]
[399897598,1766830253421,-151.0,0.0003488,31]
[399897599,1766830253431,-151.0,0.0003488,31]
[399897600,1766830253441,-151.000012,0.0003488,31]
[399897601,1766830253451,-279.55,0.00034895,30]
[399897602,1766830253461,-250.0,0.00035,7]
[399897603,1766830253471,-250.0,0.00035,7]
[399897604,1766830253481,-1000.0,0.00035,7]
[399897605,1766830253494,-3016.35,0.00035,2]
[399897606,1766830253504,-1099.0,0.00035037,5]
[399897607,1766830253514,-500.0,0.00035068,9]
[399897608,1766830253524,-500.0,0.00035068,9]
[399897609,1766830253533,-641.51,0.00035068,9]
[399897610,1766830253543,-500.0,0.00035068,9]
[399897611,1766830253553,-759.91,0.00035068,9]
[399897612,1766830253563,-500.0,0.00035068,9]
[399897613,1766830253573,-500.0,0.00035068,9]
[399897614,1766830253583,-500.0,0.00035068,9]
[399897615,1766830253592,-1457.7,0.00035068,9]
[399897616,1766830253602,-622.76,0.00035068,9]
[399897617,1766830253612,-500.0,0.00035068,9]
[399897618,1766830253622,-576.45,0.00035068,9]
[399897619,1766830253632,-500.0,0.00035068,9]
[399897620,1766830253641,-500.0,0.00035068,9]
[399897621,1766830253651,-500.0,0.00035068,9]
[399897622,1766830253660,-571.1817502,0.00035068,9]
[399897623,1766830253670,-500.0,0.00035068,9]
[399897624,1766830253680,-1460.78,0.00035068,9]
[399897625,1766830253690,-174.18,0.000351,14]
[399897626,1766830253699,-822.08,0.000351,14]
[399897627,1766830253710,-6053.46,0.000351,14]
[399897628,1766830253720,-164.69444622,0.00035179,2]
[399897629,1766830253738,-200.0,0.00035229,5]
[399897630,1766830253747,-200.0,0.00035229,5]
[399897631,1766830253758,-200.0,0.00035229,5]
[399897632,1766830253767,-200.0,0.00035229,5]
[399897633,1766830253777,-200.0,0.00035229,5]
[399897634,1766830253786,-200.0,0.00035231,5]
[399897635,1766830253795,-200.0,0.00035232,5]
[399897636,1766830253805,-200.0,0.00035232,5]
[399897637,1766830253815,-200.0,0.00035238,5]
[399897638,1766830253824,-200.0,0.00035238,5]
[399897639,1766830253834,-512.65961425,0.00035342,9]
[399897640,1766830253844,-500.0,0.00035342,9]
[399897641,1766830253855,-641.51,0.00035342,9]
[399897642,1766830253865,-500.0,0.00035342,9]
[399897643,1766830253876,-759.91,0.00035342,9]
[399897644,1766830253895,-500.0,0.00035342,9]
[399897645,1766830253904,-500.0,0.00035342,9]
[399897646,1766830253914,-500.0,0.00035342,9]
[399897647,1766830253924,-1457.7,0.00035342,9]
[399897648,1766830253933,-622.76,0.00035342,9]
[399897649,1766830253944,-500.0,0.00035342,9]
[399897650,1766830253953,-576.45,0.00035342,9]
[399897651,1766830253964,-500.0,0.00035342,9]
[399897652,1766830253975,-500.0,0.00035342,9]
[399897653,1766830253985,-500.0,0.00035342,9]
[399897654,1766830253996,-500.0,0.00035342,9]
[399897655,1766830254006,-1460.78,0.00035342,9]
[399897656,1766830254017,-745.2,0.00035431,4]
[399897657,1766830254026,-500.0,0.00035466,14]
[399897658,1766830254036,-500.0,0.00035466,14]
[399897659,1766830254046,-500.0,0.00035616,9]
[399897660,1766830254056,-641.51,0.00035616,9]
[399897661,1766830254067,-500.0,0.00035616,9]
[399897662,1766830254076,-759.91,0.00035616,9]
[399897663,1766830254087,-500.0,0.00035616,9]
[399897664,1766830254103,-516.64657263,0.00035616,9]
[399897665,1766830254113,-500.0,0.00035616,9]
[399897666,1766830254123,-1457.7,0.00035616,9]
[399897667,1766830254133,-622.76,0.00035616,9]
[399897668,1766830254142,-500.0,0.00035616,9]
[399897669,1766830254152,-999.0,0.00035616,120]
[399897670,1766830254161,-576.45,0.00035616,9]
[399897671,1766830254171,-500.0,0.00035616,9]
[399897672,1766830254181,-500.0,0.00035616,9]
[399897673,1766830254191,-500.0,0.00035616,9]
[399897674,1766830254201,-1460.78,0.00035616,9]
[399897675,1766830254211,-300.0,0.00035616,5]
[399897676,1766830254221,-564.28784662,0.00035616,7]
[399897677,1766830254234,-564.28784662,0.00035616,7]
[399897678,1766830254243,-564.28784662,0.00035616,7]
[399897679,1766830254253,-564.28784662,0.00035616,7]
[399897680,1766830254263,-564.28784662,0.00035616,7]
[399897681,1766830254272,-564.28784662,0.00035616,7]
[399897682,1766830254283,-564.28784662,0.00035616,7]
[399897683,1766830254293,-564.28784662,0.00035616,7]
[399897684,1766830254302,-564.28784662,0.00035616,7]
[399897685,1766830254312,-564.28784662,0.00035616,7]
[399897686,1766830254321,-564.28784662,0.00035616,7]
[399897687,1766830254331,-564.28784662,0.00035616,7]
[399897688,1766830254341,-564.28784662,0.00035616,7]
[399897689,1766830254351,-564.28784662,0.00035616,7]
[399897690,1766830254360,-564.28784662,0.00035616,7]
[399897691,1766830254370,-564.28784662,0.00035616,7]
[399897692,1766830254380,-564.28784662,0.00035616,7]
[399897693,1766830254390,-564.28784662,0.00035616,7]
[399897694,1766830254399,-564.28784662,0.00035616,7]
[399897695,1766830254409,-564.28784662,0.00035616,7]
[399897696,1766830254418,-564.28784662,0.00035616,7]
[399897697,1766830254427,-564.28784662,0.00035616,7]
[399897698,1766830254436,-564.28784662,0.00035616,7]
[399897699,1766830254446,-564.28784662,0.00035616,7]
[399897700,1766830254456,-564.28784662,0.00035616,7]
[399897701,1766830254466,-564.28784662,0.00035616,7]
[399897702,1766830254476,-564.28784662,0.00035616,7]
[399897703,1766830254486,-564.28784662,0.00035616,7]
[399897704,1766830254495,-564.28784662,0.00035616,7]
[399897705,1766830254504,-564.28784662,0.00035616,7]
[399897706,1766830254514,-564.28784662,0.00035616,7]
[399897707,1766830254523,-564.28784662,0.00035616,7]
[399897708,1766830254533,-564.28784662,0.00035616,7]
[399897709,1766830254542,-564.28784662,0.00035616,7]
[399897710,1766830254551,-564.28784662,0.00035616,7]
[399897711,1766830254561,-564.28784662,0.00035616,7]
[399897712,1766830254571,-564.28784662,0.00035616,7]
[399897713,1766830254580,-564.28784662,0.00035616,7]
[399897714,1766830254590,-564.28784662,0.00035616,7]
[399897715,1766830254599,-564.28784662,0.00035616,7]
[399897716,1766830254608,-564.28784662,0.00035616,7]
[399897717,1766830254618,-564.28784662,0.00035616,7]
[399897718,1766830254627,-564.28784662,0.00035616,7]
[399897719,1766830254637,-564.28784662,0.00035616,7]
[399897720,1766830254647,-564.28784662,0.00035616,7]
[399897721,1766830254656,-564.28784662,0.00035616,7]
[399897722,1766830254666,-564.28784662,0.00035616,7]
[399897723,1766830254676,-564.28784662,0.00035616,7]
[399897724,1766830254685,-564.28784662,0.00035616,7]
[399897725,1766830254695,-564.28784662,0.00035616,7]
[399897726,1766830254704,-564.28784662,0.00035616,7]
[399897727,1766830254713,-564.28784662,0.00035616,7]
[399897728,1766830254725,-564.28784662,0.00035616,7]
[399897729,1766830254749,-564.28784662,0.00035616,7]
[399897730,1766830254764,-564.28784662,0.00035616,7]
[399897731,1766830254776,-564.28784662,0.00035616,7]
[399897732,1766830254786,-564.28784662,0.00035616,7]
[399897733,1766830254796,-564.28784662,0.00035616,7]
[399897734,1766830254806,-158.626687,0.00035616,31]
[399897735,1766830254816,-158.626687,0.00035616,31]
[399897736,1766830254825,-158.626687,0.00035616,31]
[399897737,1766830254835,-158.626687,0.00035616,31]
[399897738,1766830254846,-158.626687,0.00035616,31]
[399897739,1766830254856,-158.626687,0.00035616,31]
[399897740,1766830254865,-158.626687,0.00035616,31]
[399897741,1766830254876,-158.626687,0.00035616,31]
[399897742,1766830254887,-158.626687,0.00035616,31]
[399897743,1766830254897,-158.626687,0.00035616,31]
[399897744,1766830254910,-158.626687,0.00035616,31]
[399897745,1766830254921,-158.626687,0.00035616,31]
[399897746,1766830254932,-158.626687,0.00035616,31]
[399897747,1766830254942,-158.626687,0.00035616,31]
[399897748,1766830254952,-158.626687,0.00035616,31]
[399897749,1766830254962,-158.626687,0.00035616,31]
[399897750,1766830255040,-158.626687,0.00035616,31]
[399897751,1766830255050,-158.626687,0.00035616,31]
[399897752,1766830255060,-158.626687,0.00035616,31]
[399897753,1766830255070,-158.626686,0.00035616,31]
[399897754,1766830255079,-151.0,0.00035616,31]
[399897755,1766830255094,-151.0,0.00035616,31]
[399897756,1766830255104,-151.0,0.00035616,31]
[399897757,1766830255114,-151.0,0.00035616,31]
[399897758,1766830255124,-151.0,0.00035616,31]
[399897759,1766830255133,-151.0,0.00035616,31]
[399897760,1766830255143,-151.0,0.00035616,31]
[399897761,1766830255153,-151.0,0.00035616,31]
[399897762,1766830255163,-151.0,0.00035616,31]
[399897763,1766830255173,-151.0,0.00035616,31]
[399897764,1766830255183,-151.0,0.00035616,31]
[399897765,1766830255193,-151.0,0.00035616,31]
[399897766,1766830255203,-210.420096,0.00035616,31]
[399897767,1766830255213,-151.0,0.00035616,31]
[399897768,1766830255223,-151.0,0.00035616,31]
[399897769,1766830255237,-224.706347,0.00035616,31]
[399897770,1766830255247,-153.852063,0.00035616,31]
[399897771,1766830255258,-151.0,0.00035616,31]
[399897772,1766830255268,-151.0,0.00035616,31]
[399897773,1766830255279,-210.40912343,0.00035616,31]
[399897774,1766830255288,-151.0,0.00035616,31]
[399897775,1766830255298,-151.0,0.00035616,31]
[399897776,1766830255308,-151.0,0.00035616,31]
[399897777,1766830255319,-151.0,0.00035616,31]
[399897778,1766830255329,-151.0,0.00035616,31]
[399897779,1766830255339,-151.0,0.00035616,31]
[399897780,1766830255348,-285.417,0.00035616,5]
[399897781,1766830255358,-600.49407228,0.00035863,2]
[399897782,1766830255368,-341.46045054,0.0003589,9]
[399897783,1766830255378,-641.51,0.0003589,9]
[399897784,1766830255389,-500.0,0.0003589,9]
[399897785,1766830255399,-759.91,0.0003589,9]
[399897786,1766830255410,-500.0,0.0003589,9]
[399897787,1766830255419,-500.0,0.0003589,9]
[399897788,1766830255429,-1457.7,0.0003589,9]
[399897789,1766830255439,-622.76,0.0003589,9]
[399897790,1766830255454,-500.0,0.0003589,9]
[399897791,1766830255465,-576.45,0.0003589,9]
[399897792,1766830255475,-500.0,0.0003589,9]
[399897793,1766830255485,-500.0,0.0003589,9]
[399897794,1766830255495,-500.0,0.0003589,9]
[399897795,1766830255506,-1460.78,0.0003589,9]
[399897796,1766830255515,-3016.35,0.000359,2]
[399897797,1766830255525,-659.58,0.00035973,2]
[399897798,1766830255535,-6053.46,0.00036,14]
[399897799,1766830255545,-9238.07246088,0.00036006,2]
[399897800,1766830255555,-641.51,0.00036164,9]
[399897801,1766830255565,-500.0,0.00036164,9]
[399897802,1766830255575,-759.91,0.00036164,9]
[399897803,1766830255586,-500.0,0.00036164,9]
[399897804,1766830255596,-1457.7,0.00036164,9]
[399897805,1766830255606,-622.76,0.00036164,9]
[399897806,1766830255615,-500.0,0.00036164,9]
[399897807,1766830255625,-576.45,0.00036164,9]
[399897808,1766830255634,-500.0,0.00036164,9]
[399897809,1766830255645,-500.0,0.00036164,9]
[399897810,1766830255654,-500.0,0.00036164,9]
[399897811,1766830255664,-1460.78,0.00036164,9]
[399897812,1766830255674,-1281.54023808,0.00036194,2]
[399897813,1766830255684,-174.18,0.000362,14]
[399897814,1766830255694,-822.08,0.000362,14]
[399897815,1766830255704,-600.0,0.00036288,14]
[399897816,1766830255714,-641.51,0.00036438,9]
[399897817,1766830255723,-500.0,0.00036438,9]
[399897818,1766830255734,-759.91,0.00036438,9]
[399897819,1766830255743,-500.0,0.00036438,9]
[399897820,1766830255752,-1457.7,0.00036438,9]
[399897821,1766830255762,-622.76,0.00036438,9]
[399897822,1766830255771,-500.0,0.00036438,9]
[399897823,1766830255781,-576.45,0.00036438,9]
[399897824,1766830255791,-500.0,0.00036438,9]
[399897825,1766830255801,-500.0,0.00036438,9]
[399897826,1766830255810,-180.57758332,0.00036438,9]
[399897827,1766830255825,-1460.78,0.00036438,9]
[399897828,1766830255836,-491.62993821,0.00036438,5]
[399897829,1766830255845,-641.51,0.00036712,9]
[399897830,1766830255856,-500.0,0.00036712,9]
[399897831,1766830255866,-759.91,0.00036712,9]
[399897832,1766830255876,-500.0,0.00036712,9]
[399897833,1766830255886,-1457.7,0.00036712,9]
[399897834,1766830255896,-622.76,0.00036712,9]
[399897835,1766830255906,-500.0,0.00036712,9]
[399897836,1766830255916,-999.0,0.00036712,120]
[399897837,1766830255926,-576.45,0.00036712,9]
[399897838,1766830255935,-500.0,0.00036712,9]
[399897839,1766830255945,-500.0,0.00036712,9]
[399897840,1766830255955,-1460.78,0.00036712,9]
[399897841,1766830255965,-1099.0,0.00036789,5]
[399897842,1766830255975,-3016.35,0.000368,2]
[399897843,1766830255985,-150.77,0.00036932,2]
[399897844,1766830255995,-150.0,0.00036932,2]
[399897845,1766830256005,-150.8,0.00036932,2]
[399897846,1766830256015,-150.0,0.00036932,2]
[399897847,1766830256025,-298.75,0.00036932,2]
[399897848,1766830256035,-150.0,0.00036932,2]
[399897849,1766830256046,-170.86,0.00036932,2]
[399897850,1766830256056,-150.0,0.00036932,2]
[399897851,1766830256065,-170.86,0.00036932,2]
[399897852,1766830256075,-150.0,0.00036932,2]
[399897853,1766830256085,-170.86,0.00036932,2]
[399897854,1766830256095,-170.86,0.00036932,2]
[399897855,1766830256105,-150.0,0.00036932,2]
[399897856,1766830256115,-170.86,0.00036932,2]
[399897857,1766830256126,-150.0,0.00036932,2]
[399897858,1766830256135,-170.86,0.00036932,2]
[399897859,1766830256145,-150.0,0.00036932,2]
[399897860,1766830256155,-170.86,0.00036932,2]
[399897861,1766830256165,-150.0,0.00036932,2]
[399897862,1766830256174,-170.86,0.00036932,2]
[399897863,1766830256188,-150.0,0.00036932,2]
[399897864,1766830256198,-167.35,0.00036932,2]
[399897865,1766830256208,-150.0,0.00036932,2]
[399897866,1766830256219,-150.0,0.00036932,2]
[399897867,1766830256232,-150.0,0.00036932,2]
[399897868,1766830256243,-641.51,0.00036986,9]
[399897869,1766830256254,-500.0,0.00036986,9]
[399897870,1766830256263,-759.91,0.00036986,9]
[399897871,1766830256274,-500.0,0.00036986,9]
[399897872,1766830256284,-1457.7,0.00036986,9]
[399897873,1766830256294,-622.76,0.00036986,9]
[399897874,1766830256305,-500.0,0.00036986,9]
[399897875,1766830256315,-576.45,0.00036986,9]
[399897876,1766830256325,-302.18389543,0.00036986,9]
[399897877,1766830256335,-500.0,0.00036986,9]
[399897878,1766830256347,-1460.78,0.00036986,9]
[399897879,1766830256357,-500.0,0.0003711,14]
[399897880,1766830256367,-500.0,0.0003711,14]
[399897881,1766830256382,-745.2,0.00037216,5]
[399897882,1766830256393,-11522.3241759,0.0003725,30]
[399897883,1766830256404,-641.51,0.0003726,9]
[399897884,1766830256413,-500.0,0.0003726,9]
[399897885,1766830256423,-759.91,0.0003726,9]
[399897886,1766830256433,-500.0,0.0003726,9]
[399897887,1766830256443,-1457.7,0.0003726,9]
[399897888,1766830256454,-622.76,0.0003726,9]
[399897889,1766830256464,-500.0,0.0003726,9]
[399897890,1766830256474,-576.45,0.0003726,9]
[399897891,1766830256484,-500.0,0.0003726,9]
[399897892,1766830256494,-1460.78,0.0003726,9]
[399897893,1766830256505,-641.51,0.00037534,9]
[399897894,1766830256515,-500.0,0.00037534,9]
[399897895,1766830256525,-759.91,0.00037534,9]
[399897896,1766830256535,-500.0,0.00037534,9]
[399897897,1766830256546,-1457.7,0.00037534,9]
[399897898,1766830256555,-622.76,0.00037534,9]
[399897899,1766830256566,-500.0,0.00037534,9]
[399897900,1766830256578,-576.45,0.00037534,9]
[399897901,1766830256588,-500.0,0.00037534,9]
[399897902,1766830256598,-1460.78,0.00037534,9]
[399897903,1766830256607,-152.0,0.00037635,3]
[399897904,1766830256618,-641.51,0.00037808,9]
[399897905,1766830256628,-500.0,0.00037808,9]
[399897906,1766830256637,-759.91,0.00037808,9]
[399897907,1766830256647,-500.0,0.00037808,9]
[399897908,1766830256657,-1457.7,0.00037808,9]
[399897909,1766830256667,-622.76,0.00037808,9]
[399897910,1766830256677,-500.0,0.00037808,9]
[399897911,1766830256687,-999.0,0.00037808,120]
[399897912,1766830256696,-576.45,0.00037808,9]
[399897913,1766830256706,-500.0,0.00037808,9]
[399897914,1766830256716,-1460.78,0.00037808,9]
[399897915,1766830256726,-600.0,0.00037932,14]
[399897916,1766830256736,-5867.0,0.00038,7]
[399897917,1766830256746,-520.18255948,0.00038,120]
[399897918,1766830256757,-200.0,0.00038,2]
[399897919,1766830256767,-192.08468511,0.00038,2]
[399897920,1766830256777,-641.51,0.00038082,9]
[399897921,1766830256787,-500.0,0.00038082,9]
[399897922,1766830256797,-759.91,0.00038082,9]
[399897923,1766830256807,-151.0,0.00038082,31]
[399897924,1766830256816,-500.0,0.00038082,9]
[399897925,1766830256826,-1457.7,0.00038082,9]
[399897926,1766830256835,-622.76,0.00038082,9]
[399897927,1766830256846,-310.0137863,0.00038082,9]
[399897928,1766830256856,-576.45,0.00038082,9]
[399897929,1766830256865,-500.0,0.00038082,9]
[399897930,1766830256875,-1460.78,0.00038082,9]
[399897931,1766830256885,-615.1116237,0.00038109,2]
[399897932,1766830256895,-899.0,0.00038168,20]
[399897933,1766830256905,-223.596263,0.00038209,31]
[399897934,1766830256916,-151.0,0.00038209,31]
[399897935,1766830256925,-235.297556,0.00038209,31]
[399897936,1766830256935,-200.0,0.00038209,2]
[399897937,1766830256945,-200.0,0.00038209,2]
[399897938,1766830256969,-200.0,0.00038209,2]
[399897939,1766830256979,-200.0,0.00038209,2]
[399897940,1766830256989,-200.0,0.00038209,2]
[399897941,1766830256999,-200.0,0.00038209,2]
[399897942,1766830257009,-200.0,0.00038209,2]
[399897943,1766830257019,-200.0,0.00038209,2]
[399897944,1766830257030,-200.0,0.00038209,2]
[399897945,1766830257040,-200.0,0.00038209,2]
[399897946,1766830257050,-200.0,0.00038209,2]
[399897947,1766830257060,-200.0,0.00038209,2]
[399897948,1766830257070,-200.0,0.00038209,2]
[399897949,1766830257080,-200.0,0.00038209,2]
[399897950,1766830257090,-200.0,0.00038209,2]
[399897951,1766830257101,-200.0,0.00038209,2]
[399897952,1766830257110,-200.0,0.00038209,2]
[399897953,1766830257120,-200.0,0.00038209,2]
[399897954,1766830257130,-200.0,0.00038209,2]
[399897955,1766830257139,-200.0,0.00038209,2]
[399897956,1766830257149,-200.0,0.00038209,2]
[399897957,1766830257159,-200.0,0.00038209,2]
[399897958,1766830257169,-200.0,0.00038209,2]
[399897959,1766830257178,-200.0,0.00038209,2]
[399897960,1766830257188,-200.0,0.00038209,2]
[399897961,1766830257197,-200.0,0.00038209,2]
[399897962,1766830257207,-200.0,0.00038209,2]
[399897963,1766830257217,-200.0,0.00038209,2]
[399897964,1766830257227,-200.0,0.00038209,2]
[399897965,1766830257237,-200.0,0.00038209,2]
[399897966,1766830257247,-200.0,0.00038209,2]
[399897967,1766830257257,-200.0,0.00038209,2]
[399897968,1766830257267,-200.0,0.00038209,2]
[399897969,1766830257276,-200.0,0.00038209,2]
[399897970,1766830257287,-200.0,0.00038209,2]
[399897971,1766830257297,-200.0,0.00038209,2]
[399897972,1766830257313,-152.0,0.00038209,2]
[399897973,1766830257322,-177.32707689,0.000383,30]
[399897974,1766830257333,-641.51,0.00038356,9]
[399897975,1766830257343,-500.0,0.00038356,9]
[399897976,1766830257353,-759.91,0.00038356,9]
[399897977,1766830257363,-500.0,0.00038356,9]
[399897978,1766830257373,-1457.7,0.00038356,9]
[399897979,1766830257383,-622.76,0.00038356,9]
[399897980,1766830257392,-576.45,0.00038356,9]
[399897981,1766830257403,-500.0,0.00038356,9]
[399897982,1766830257413,-1460.78,0.00038356,9]
[399897983,1766830257423,-171.2502,0.00038356,30]
[399897984,1766830257433,-25000.0,0.00038383,10]
[399897985,1766830257443,-25000.0,0.00038392,10]
[399897986,1766830257452,-20287.12147801,0.00038392,10]
[399897987,1766830257462,-270.27368453,0.00038392,10]
[399897988,1766830257472,-364.0,0.000384,2]
[399897989,1766830257482,-364.0,0.000384,2]
[399897990,1766830257492,-364.0,0.000384,2]
[399897991,1766830257502,-364.0,0.000384,2]
[399897992,1766830257511,-485.53,0.000384,2]
[399897993,1766830257522,-304.19847285,0.00038402,2]
[399897994,1766830257531,-367.89553156,0.00038402,2]
[399897995,1766830257542,-303.41540829,0.00038402,2]
[399897996,1766830257551,-595.09007448,0.00038402,2]
[399897997,1766830257560,-363.99471825,0.00038402,2]
[399897998,1766830257570,-300.0,0.00038402,2]
[399897999,1766830257580,-303.03037179,0.00038402,2]
[399898000,1766830257590,-577.27091358,0.00038402,2]
[399898001,1766830257599,-1082.41756512,0.00038402,2]
[399898002,1766830257609,-304.19847285,0.00038402,2]
[399898003,1766830257619,-519.82543448,0.00038402,2]